bitfinex/quotes_SOLUSD_20240926
["timestamp","ask_amount","ask_price","bid_price","bid_amount"]
[1727359410810,0.4893367,152.65,152.61,24.027864]
[1727359411048,0.4893367,152.65,152.63,0.12549]
[1727359411411,0.4893367,152.65,152.64,1.56113936]
[1727359411628,0.4893367,152.65,152.64,25.33802336]
[1727359411918,0.4893367,152.65,152.64,45.33802336]
[1727359414628,0.0736354,152.67,152.65,44.027864]
[1727359414828,0.3807237,152.72,152.67,20.25098]
[1727359415034,0.3807237,152.72,152.69,24.027864]
[1727359415221,0.3807237,152.72,152.7,1.30956914]
[1727359416023,0.3807237,152.72,152.71,44.027864]
[1727359416330,0.0736354,152.76,152.73,44.027864]
[1727359416528,0.0736354,152.76,152.73,21.56010737]
[1727359416845,0.0736354,152.76,152.73,45.33699137]
[1727359417545,0.0736354,152.76,152.74,44.027864]
[1727359417743,0.0736354,152.76,152.75,45.33686102]
[1727359417918,0.0736354,152.76,152.75,44.027864]
[1727359419123,0.0736354,152.76,152.71,20.0]
[1727359419525,0.0736354,152.76,152.72,0.12549]
[1727359419946,0.0736354,152.76,152.71,1.30924418]
[1727359420529,0.0736354,152.76,152.7,20.0]
[1727359420744,0.0736354,152.76,152.66,152.150629]
[1727359421043,0.0736354,152.76,152.67,1.30957597]
[1727359422127,16.0446,152.75,152.63,33.12860562]
[1727359422327,6.499,152.74,152.63,130.89934523]
[1727359422930,6.499,152.74,152.62,15.5944]
[1727359423141,6.5476,152.73,152.62,15.5944]
[1727359423323,13.0461,152.74,152.62,15.5944]
[1727359423526,6.499,152.74,152.63,34.43842736]
[1727359424152,6.499,152.74,152.64,44.027864]
[1727359424354,6.499,152.74,152.66,24.027864]
[1727359424855,6.499,152.74,152.68,24.027864]
[1727359425062,6.499,152.74,152.7,0.25098]
[1727359425230,6.499,152.74,152.71,1.30951057]
[1727359426128,16.0446,152.75,152.71,1.30951057]
[1727359426340,0.0736354,152.76,152.72,0.12549]
[1727359427956,0.0736354,152.76,152.71,24.027864]
[1727359428127,0.0736354,152.76,152.72,20.0]
[1727359428329,0.0736354,152.76,152.73,25.2115179]
[1727359428534,0.0736354,152.76,152.74,0.12549]
[1727359430641,0.0736354,152.76,152.74,1.43465757]
[1727359430939,0.0736354,152.76,152.73,23.902374]
[1727359431846,0.0736354,152.76,152.67,20.0]
[1727359432246,0.0736354,152.76,152.66,60.30245786]
[1727359432579,0.0736354,152.76,152.67,33.12860562]
[1727359432858,0.0736354,152.76,152.68,20.0]
[1727359433248,0.0736354,152.76,152.69,23.902374]
[1727359433634,0.0736354,152.76,152.71,23.902374]
[1727359433840,0.0736354,152.76,152.72,20.0]
[1727359434042,0.0736354,152.76,152.73,0.25098]
[1727359434954,0.0736354,152.76,152.73,24.027864]
[1727359435454,0.0736354,152.76,152.68,20.0]
[1727359435638,0.0736354,152.76,152.67,20.0]
[1727359436133,0.0736354,152.76,152.66,46.84825786]
[1727359436653,0.0736354,152.76,152.67,1.30956795]
[1727359437656,0.0736354,152.76,152.68,24.027864]
[1727359437961,0.0736354,152.76,152.72,24.027864]
[1727359438140,0.0736354,152.76,152.74,0.12549]
[1727359438461,0.0736354,152.76,152.73,20.0]
[1727359438755,0.0736354,152.76,152.73,21.30920702]
[1727359438961,0.0736354,152.76,152.73,20.0]
[1727359439644,0.0736354,152.76,152.74,0.12549]
[1727359440554,0.0736354,152.76,152.67,33.12860562]
[1727359440860,0.0736354,152.76,152.68,44.027864]
[1727359441738,0.0736354,152.76,152.68,20.0]
[1727359441946,0.0736354,152.76,152.67,20.0]
[1727359442138,0.0736354,152.76,152.66,40.30245786]
[1727359442347,15.6131,152.75,152.63,40.31301999]
[1727359442846,13.1218,152.74,152.63,40.31301999]
[1727359443041,6.5745,152.74,152.64,40.98447937]
[1727359443263,6.5745,152.74,152.67,33.12860562]
[1727359443447,6.5745,152.74,152.68,1.3094133]
[1727359443766,0.0736354,152.76,152.71,20.0]
[1727359443950,0.0736354,152.76,152.73,24.027864]
[1727359444158,0.0736354,152.76,152.75,0.12549]
[1727359444550,0.0736354,152.76,152.75,45.33703272]
[1727359445163,0.3807237,152.79,152.78,0.25098]
[1727359445465,0.3807237,152.79,152.78,45.33662004]
[1727359445673,0.3807237,152.79,152.78,44.027864]
[1727359445964,0.3807237,152.79,152.78,0.12549]
[1727359447969,0.3807237,152.79,152.75,20.0]
[1727359449366,0.3807237,152.79,152.76,24.027864]
[1727359450060,0.3807237,152.79,152.77,21.30888256]
[1727359450263,0.3807237,152.79,152.78,0.12549]
[1727359451676,0.3807237,152.79,152.72,60.88855228]
[1727359451871,0.3807237,152.79,152.73,24.027864]
[1727359453458,0.3807237,152.79,152.74,20.0]
[1727359453765,0.3807237,152.79,152.75,0.12549]
[1727359454576,0.3807237,152.79,152.75,1.43464631]
[1727359454755,0.3807237,152.79,152.77,0.12549]
[1727359455674,0.3807237,152.79,152.77,1.43442114]
[1727359456368,0.3807237,152.79,152.78,23.902374]
[1727359456566,0.3807237,152.79,152.78,44.027864]
[1727359457269,0.3807237,152.79,152.72,20.0]
[1727359457573,12.7444,152.83,152.74,20.0]
[1727359457782,12.7444,152.83,152.77,0.25098]
[1727359457783,0.4483984,152.8,152.77,0.25098]
[1727359457967,0.4483984,152.8,152.74,20.0]
[1727359458171,0.4483984,152.8,152.75,0.25098]
[1727359458363,0.4483984,152.8,152.75,1.5599989]
[1727359459479,0.4483984,152.8,152.75,24.027864]
[1727359459651,0.4483984,152.8,152.79,0.12549]
[1727359459851,0.4483984,152.8,152.77,0.12549]
[1727359460055,0.4483984,152.8,152.77,0.25098]
[1727359460271,0.4483984,152.8,152.76,24.027864]
[1727359460568,0.4483984,152.8,152.78,0.12549]
[1727359460953,0.4483984,152.8,152.78,1.43436364]
[1727359461561,0.4483984,152.8,152.78,0.12549]
[1727359461758,0.4483984,152.8,152.77,0.12549]
[1727359462479,0.4483984,152.8,152.73,20.0]
[1727359462778,0.4483984,152.8,152.68,150.73146811]
[1727359463373,0.4483984,152.8,152.68,154.13601283]
[1727359463565,0.4483984,152.8,152.71,32.97604077]
[1727359463765,0.4483984,152.8,152.72,24.027864]
[1727359463976,0.4483984,152.8,152.73,20.0]
[1727359464280,0.4483984,152.8,152.74,0.25098]
[1727359464688,0.4483984,152.8,152.74,1.30915763]
[1727359464981,0.4483984,152.8,152.75,20.0]
[1727359465965,0.4483984,152.8,152.77,0.25098]
[1727359466175,0.4483984,152.8,152.78,0.12549]
[1727359466991,0.4483984,152.8,152.75,20.0]
[1727359467166,0.4483984,152.8,152.72,20.0]
[1727359467976,0.4483984,152.8,152.73,1.30900919]
[1727359468295,0.4483984,152.8,152.75,20.0]
[1727359468458,0.4483984,152.8,152.76,0.25098]
[1727359468658,0.4483984,152.8,152.76,0.12549]
[1727359468879,0.4483984,152.8,152.76,1.43445529]
[1727359469064,0.4483984,152.8,152.77,1.3087798]
[1727359469274,0.4483984,152.8,152.78,0.12549]
[1727359469564,0.4483984,152.8,152.79,1.30869425]
[1727359469767,0.4483984,152.8,152.79,45.33655825]
[1727359469971,0.1822484,152.85,152.77,32.97604077]
[1727359469972,0.1822484,152.85,152.8,44.027864]
[1727359470182,0.1822484,152.85,152.8,77.00390477]
[1727359470387,0.1822484,152.85,152.82,24.027864]
[1727359470691,0.1822484,152.85,152.84,0.12549]
[1727359471682,0.1822484,152.85,152.8,76.87841477]
[1727359471994,0.1822484,152.85,152.82,0.12549]
[1727359472169,0.1822484,152.85,152.83,1.30835149]
[1727359472365,0.1822484,152.85,152.82,0.12549]
[1727359472697,0.1822484,152.85,152.83,0.12549]
[1727359473681,0.1822484,152.85,152.84,1.4338403]
[1727359474289,0.1822484,152.85,152.84,0.12549]
[1727359474682,0.1822484,152.85,152.83,0.12549]
[1727359475015,0.1822484,152.85,152.8,76.75292477]
[1727359475016,0.1822484,152.85,152.8,52.97604077]
[1727359475198,0.1822484,152.85,152.81,1.43395616]
[1727359475488,0.1822484,152.85,152.81,20.12549]
[1727359475801,0.1822484,152.85,152.83,0.12549]
[1727359475975,0.1822484,152.85,152.84,1.43374066]
[1727359476503,0.1822484,152.85,152.84,1.55923066]
[1727359476685,0.1822484,152.85,152.84,25.33611466]
[1727359476991,0.1822484,152.85,152.84,24.027864]
[1727359477294,0.1822484,152.85,152.84,0.25098]
[1727359477512,0.1822484,152.85,152.84,0.12549]
[1727359478185,0.1822484,152.85,152.82,24.027864]
[1727359478493,0.1822484,152.85,152.84,0.12549]
[1727359478700,0.1822484,152.85,152.84,0.25098]
[1727359479683,0.1822484,152.85,152.84,24.027864]
[1727359480078,0.1822484,152.85,152.84,25.33606396]
[1727359480697,0.1822484,152.85,152.84,45.33606396]
[1727359481294,0.1822484,152.85,152.84,44.027864]
[1727359482308,0.1822484,152.85,152.84,45.33587501]
[1727359482482,22.5439,152.92,152.85,20.0]
[1727359482685,22.5439,152.92,152.86,45.90941969]
[1727359482907,22.5439,152.92,152.86,0.12549]
[1727359483409,22.5439,152.92,152.82,20.57360797]
[1727359483597,6.5401,152.91,152.8,20.57360797]
[1727359484202,29.0833,152.92,152.8,20.57360797]
[1727359484796,29.0833,152.92,152.81,20.0]
[1727359485196,29.0833,152.92,152.82,24.027864]
[1727359485999,6.5403,152.9,152.82,0.25098]
[1727359486196,22.4111,152.86,152.81,20.0]
[1727359486399,22.4111,152.86,152.78,20.57360797]
[1727359487807,22.4111,152.86,152.79,20.0]
[1727359488014,22.4111,152.86,152.78,20.57360797]
[1727359488185,22.967,152.85,152.72,132.86398516]
[1727359488515,6.5431,152.84,152.72,117.72458516]
[1727359488816,6.5431,152.84,152.72,124.56459609]
[1727359489211,22.967,152.85,152.72,124.56459609]
[1727359489404,22.8078,152.82,152.72,124.56459609]
[1727359489607,22.8078,152.82,152.73,21.88265269]
[1727359490686,22.8078,152.82,152.74,44.027864]
[1727359491114,22.8078,152.82,152.73,20.57360797]
[1727359491115,22.8078,152.82,152.73,20.0]
[1727359491912,22.8078,152.82,152.74,1.3090198]
[1727359492098,22.8078,152.82,152.76,20.0]
[1727359492300,22.8078,152.82,152.77,1.30877346]
[1727359492608,22.8078,152.82,152.77,21.88238143]
[1727359492791,22.8078,152.82,152.78,0.25098]
[1727359493187,22.8078,152.82,152.78,1.55973638]
[1727359493402,22.8078,152.82,152.78,0.25098]
[1727359493604,22.8078,152.82,152.78,24.027864]
[1727359495613,21.8139,152.86,152.8,24.027864]
[1727359495820,21.8139,152.86,152.82,0.12549]
[1727359495991,21.8139,152.86,152.83,1.3084576]
[1727359496605,21.8139,152.86,152.84,24.027864]
[1727359496814,6.1992,152.86,152.84,0.25098]
[1727359497006,6.1992,152.86,152.84,0.12549]
[1727359497207,6.1992,152.86,152.83,0.12549]
[1727359497418,6.1992,152.86,152.84,1.30838687]
[1727359497624,6.1992,152.86,152.85,0.12549]
[1727359497923,6.1992,152.86,152.83,23.902374]
[1727359498309,6.1992,152.86,152.83,0.25098]
[1727359498907,6.1992,152.86,152.83,0.12549]
[1727359499215,6.1992,152.86,152.8,20.0]
[1727359499416,6.1992,152.86,152.82,20.0]
[1727359499721,0.3779315,152.87,152.84,20.0]
[1727359499927,0.3779315,152.87,152.85,1.43367916]
[1727359500420,0.3779315,152.87,152.85,0.12549]
[1727359502030,0.3779315,152.87,152.86,44.027864]
[1727359502334,0.3779315,152.87,152.86,0.25098]
[1727359503125,0.3779315,152.87,152.79,109.54548254]
[1727359503427,0.3779315,152.87,152.79,20.57360797]
[1727359504217,0.3779315,152.87,152.76,95.83150865]
[1727359504218,0.3779315,152.87,152.81,20.57360797]
[1727359504531,0.3779315,152.87,152.82,20.0]
[1727359505044,0.3779315,152.87,152.83,24.027864]
[1727359505213,0.3779315,152.87,152.83,0.25098]
[1727359505415,0.3779315,152.87,152.82,20.0]
[1727359505817,0.3779315,152.87,152.77,20.57360797]
[1727359506017,22.6407,152.83,152.76,6.84216121]
[1727359506328,0.3779315,152.87,152.71,3.40454472]
[1727359506329,6.5445,152.8,152.71,3.40454472]
[1727359506543,36.4525315,152.87,152.69,3.40454472]
[1727359506544,21.621,152.78,152.69,3.40454472]
[1727359506703,21.621,152.78,152.67,43.54060797]
[1727359506704,21.621,152.78,152.67,23.97815269]
[1727359507042,21.621,152.78,152.67,3.40454472]
[1727359507209,6.5467,152.75,152.66,6.84899189]
[1727359507406,36.0791,152.82,152.66,6.84899189]
[1727359507407,6.1955,152.73,152.66,6.84899189]
[1727359507606,6.1955,152.73,152.62,66.34493879]
[1727359507808,6.1955,152.73,152.66,20.57360797]
[1727359508019,6.1955,152.73,152.66,7.69540023]
[1727359508336,36.0791,152.82,152.62,7.29795981]
[1727359508337,6.1955,152.7,152.62,7.29795981]
[1727359508639,6.1955,152.68,152.62,0.4515669]
[1727359509908,6.1955,152.68,152.63,1.31018891]
[1727359510105,6.1955,152.68,152.62,0.4515669]
[1727359510934,6.1955,152.68,152.63,0.12549]
[1727359511130,6.1955,152.68,152.63,24.027864]
[1727359511541,16.0197,152.69,152.65,24.027864]
[1727359511715,66.3565,152.85,152.69,0.25098]
[1727359511716,6.2584,152.73,152.69,0.25098]
[1727359512614,6.2584,152.73,152.69,24.027864]
[1727359513029,6.2584,152.73,152.71,0.25098]
[1727359513242,15.6194,152.74,152.71,0.25098]
[1727359513621,6.4509,152.77,152.71,24.027864]
[1727359514638,6.4509,152.77,152.73,24.027864]
[1727359515217,6.4509,152.77,152.73,0.25098]
[1727359516727,6.4509,152.77,152.71,0.12549]
[1727359516933,6.4509,152.77,152.7,20.0]
[1727359517330,6.4509,152.77,152.67,20.0]
[1727359517943,6.4509,152.77,152.68,0.25098]
[1727359518145,6.4509,152.77,152.71,20.0]
[1727359518442,6.4509,152.77,152.69,20.0]
[1727359518443,6.4509,152.77,152.72,0.25098]
[1727359518743,6.4509,152.77,152.69,20.0]
[1727359518951,6.4509,152.77,152.69,0.12549]
[1727359520054,6.4509,152.77,152.69,0.25098]
[1727359520264,6.4509,152.77,152.71,0.25098]
[1727359520933,6.4509,152.77,152.69,20.0]
[1727359521132,6.4509,152.77,152.68,0.1687406]
[1727359522332,6.4509,152.77,152.69,0.25098]
[1727359522556,6.4509,152.77,152.69,20.25098]
[1727359523838,6.4509,152.77,152.69,0.25098]
[1727359526453,6.4509,152.77,152.71,53.28995847]
[1727359526643,6.4509,152.77,152.73,0.25098]
[1727359526848,6.4509,152.77,152.73,20.25098]
[1727359527345,6.4509,152.77,152.74,1.3091695]
[1727359527663,6.4509,152.77,152.73,20.25098]
[1727359528230,15.0369,152.79,152.76,24.027864]
[1727359528430,15.0369,152.79,152.77,21.30897166]
[1727359528657,15.0369,152.79,152.77,20.0]
[1727359528835,0.1082183,152.8,152.78,1.30896985]
[1727359529030,0.1082183,152.8,152.77,20.0]
[1727359529031,0.1082183,152.8,152.79,25.3367071]
[1727359529236,0.1082183,152.8,152.79,44.027864]
[1727359529535,0.1082183,152.8,152.79,20.0]
[1727359529736,0.1082183,152.8,152.79,20.12549]
[1727359530031,0.1082183,152.8,152.73,20.0]
[1727359530238,0.1082183,152.8,152.77,20.0]
[1727359531847,0.1082183,152.8,152.75,0.12549]
[1727359532046,0.1082183,152.8,152.74,20.12549]
[1727359532335,6.1806,152.79,152.69,128.07679503]
[1727359532848,6.1806,152.79,152.68,0.1687406]
[1727359532849,15.6846,152.78,152.68,0.1687406]
[1727359533952,15.6846,152.78,152.69,1.30944767]
[1727359534161,15.6846,152.78,152.68,0.1687406]
[1727359534459,15.6846,152.78,152.69,0.25098]
[1727359534776,15.6846,152.78,152.68,0.1687406]
[1727359534777,15.6846,152.78,152.72,20.0]
[1727359534933,15.6846,152.78,152.73,0.25098]
[1727359535554,15.6846,152.78,152.68,20.1687406]
[1727359535756,15.6846,152.78,152.71,0.25098]
[1727359537342,15.6846,152.78,152.68,20.1687406]
[1727359537343,15.6846,152.78,152.72,1.30945443]
[1727359537541,15.6846,152.78,152.73,0.25098]
[1727359537744,15.6846,152.78,152.75,20.25098]
[1727359538142,15.6846,152.78,152.77,0.25098]
[1727359538538,15.6846,152.78,152.77,20.0]
[1727359538739,15.6846,152.78,152.74,20.25098]
[1727359539564,15.6846,152.78,152.65,39.88292304]
[1727359539746,15.6846,152.78,152.66,110.74109171]
[1727359540252,15.6846,152.78,152.66,117.58779262]
[1727359540453,15.6846,152.78,152.69,95.04404079]
[1727359540758,15.6846,152.78,152.73,24.027864]
[1727359541059,15.6846,152.78,152.76,20.0]
[1727359541233,15.6846,152.78,152.77,0.25098]
[1727359541451,6.1806,152.79,152.77,0.25098]
[1727359541751,0.1082183,152.8,152.79,0.12549]
[1727359542373,0.1082183,152.8,152.79,44.027864]
[1727359543550,0.2769589,152.85,152.79,44.027864]
[1727359543551,0.2769589,152.85,152.79,45.33631553]
[1727359543782,0.2769589,152.85,152.81,24.027864]
[1727359544069,0.2769589,152.85,152.82,20.0]
[1727359544381,0.2769589,152.85,152.78,33.03897847]
[1727359544382,0.2769589,152.85,152.84,20.25098]
[1727359545381,0.2769589,152.85,152.84,20.0]
[1727359545556,0.2769589,152.85,152.8,0.25098]
[1727359545755,0.2769589,152.85,152.8,44.027864]
[1727359548355,0.2769589,152.85,152.76,20.0]
[1727359548569,0.2769589,152.85,152.72,128.06434901]
[1727359548759,6.8193589,152.85,152.72,128.06434901]
[1727359549077,0.2769589,152.85,152.72,128.06434901]
[1727359549548,22.3929,152.84,152.72,95.02537054]
[1727359549876,6.5433,152.83,152.72,95.02537054]
[1727359550063,22.3929,152.84,152.72,95.02537054]
[1727359550576,6.5432,152.83,152.72,95.02537054]
[1727359550881,6.544,152.82,152.73,24.027864]
[1727359551177,21.5747,152.81,152.73,24.027864]
[1727359551374,21.5747,152.81,152.69,95.04404079]
[1727359551669,21.5747,152.81,152.71,33.03897847]
[1727359551974,22.1282,152.83,152.68,0.2769589]
[1727359552178,0.2769589,152.85,152.68,0.2769589]
[1727359552179,22.1282,152.79,152.68,0.2769589]
[1727359552652,22.1282,152.79,152.69,1.30947411]
[1727359552857,22.1282,152.79,152.68,0.2769589]
[1727359553266,22.1282,152.79,152.71,44.027864]
[1727359557293,22.1282,152.79,152.75,23.902374]
[1727359557457,22.1282,152.79,152.77,24.027864]
[1727359557658,22.1282,152.79,152.76,1.30898989]
[1727359557659,22.1282,152.79,152.78,44.027864]
[1727359558386,22.1282,152.79,152.78,0.25098]
[1727359559772,22.1282,152.79,152.74,20.0]
[1727359560258,22.1282,152.79,152.71,57.60397383]
[1727359560887,22.1282,152.79,152.71,37.60397383]
[1727359561487,22.1282,152.79,152.72,1.30926559]
[1727359561867,22.1282,152.79,152.71,37.60397383]
[1727359562380,22.1282,152.79,152.72,0.12549]
[1727359562561,28.6731,152.79,152.69,57.60889936]
[1727359562761,36.3533589,152.85,152.68,40.14822985]
[1727359562762,36.0788,152.83,152.68,7.10925138]
[1727359562983,6.188,152.75,152.68,7.10925138]
[1727359563184,6.188,152.75,152.68,0.2769589]
[1727359564188,6.188,152.75,152.69,1.30943723]
[1727359564393,6.188,152.75,152.71,33.03897847]
[1727359564566,6.188,152.75,152.72,45.3370649]
[1727359564771,6.188,152.75,152.72,44.027864]
[1727359565184,21.7885,152.8,152.75,20.0]
[1727359565390,21.7885,152.8,152.77,24.027864]
[1727359565569,21.7885,152.8,152.78,20.0]
[1727359566192,21.7885,152.8,152.78,0.12549]
[1727359566570,21.7885,152.8,152.77,20.0]
[1727359566768,21.7885,152.8,152.76,0.25098]
[1727359567069,21.7885,152.8,152.76,0.12549]
[1727359567265,21.7885,152.8,152.77,0.25098]
[1727359567573,21.7885,152.8,152.78,20.0]
[1727359567884,21.7885,152.8,152.79,0.12549]
[1727359568082,21.7885,152.8,152.78,20.0]
[1727359568288,21.7885,152.8,152.72,0.25098]
[1727359568467,21.7885,152.8,152.72,20.0]
[1727359569862,21.7885,152.8,152.68,0.2769589]
[1727359570171,28.3333,152.8,152.68,0.2769589]
[1727359570570,21.7885,152.8,152.68,0.2769589]
[1727359571285,21.7885,152.8,152.7,20.0]
[1727359571668,21.7885,152.8,152.71,24.027864]
[1727359571863,27.7624,152.79,152.71,0.12549]
[1727359572070,6.5454,152.78,152.7,20.0]
[1727359572368,36.0788,152.83,152.68,0.2769589]
[1727359572369,21.2174,152.77,152.68,0.2769589]
[1727359573574,22.128,152.76,152.68,0.2769589]
[1727359573782,22.128,152.73,152.68,0.2769589]
[1727359574268,28.6758,152.73,152.68,0.2769589]
[1727359575113,6.5479,152.72,152.68,0.2769589]
[1727359575483,22.128,152.73,152.68,0.2769589]
[1727359575993,28.6755,152.73,152.68,0.2769589]
[1727359576298,21.8708,152.72,152.62,0.3505943]
[1727359576593,22.0509,152.69,152.62,0.3505943]
[1727359576801,6.3011,152.68,152.62,0.3505943]
[1727359577673,6.3011,152.68,152.63,1.31026744]
[1727359578675,6.3011,152.68,152.64,0.25098]
[1727359579499,6.3011,152.68,152.63,0.25098]
[1727359579797,6.3011,152.68,152.63,0.12549]
[1727359580172,6.3011,152.68,152.63,0.25098]
[1727359580899,6.3011,152.68,152.65,0.25098]
[1727359581071,6.3011,152.68,152.62,0.3682949]
[1727359581273,6.3011,152.68,152.62,20.3682949]
[1727359581473,6.3011,152.68,152.62,0.3682949]
[1727359582624,6.3011,152.68,152.63,24.027864]
[1727359583099,6.3011,152.68,152.63,0.12549]
[1727359583986,6.3011,152.68,152.63,1.5611638]
[1727359584296,6.3011,152.68,152.63,20.25098]
[1727359584799,6.3011,152.68,152.63,24.027864]
[1727359585283,6.3011,152.68,152.65,0.25098]
[1727359585485,6.3011,152.68,152.66,1.30994517]
[1727359585693,6.3011,152.68,152.65,0.25098]
[1727359586402,6.3011,152.68,152.67,0.12549]
[1727359586600,6.3011,152.68,152.67,1.56083076]
[1727359586980,6.3011,152.68,152.67,24.027864]
[1727359587503,15.5016,152.69,152.67,24.027864]
[1727359587504,15.5016,152.69,152.68,0.12549]
[1727359588993,15.5016,152.69,152.67,0.12549]
[1727359589195,15.5016,152.69,152.66,0.25098]
[1727359589704,15.5016,152.69,152.62,0.3682949]
[1727359590806,6.4928,152.68,152.62,0.3682949]
[1727359591196,6.5502,152.67,152.62,0.3682949]
[1727359591401,16.3222,152.66,152.62,0.3682949]
[1727359591605,6.128,152.65,152.62,0.3682949]
[1727359594310,12.6789,152.65,152.62,0.3682949]
[1727359595009,6.128,152.65,152.62,0.3682949]
[1727359600827,12.6789,152.65,152.62,0.3682949]
[1727359601525,6.128,152.65,152.59,0.2562637]
[1727359601733,15.8122,152.64,152.59,0.2562637]
[1727359601936,6.6517,152.61,152.59,0.2562637]
[1727359602231,6.5539,152.58,152.53,0.3298991]
[1727359602400,6.6517,152.57,152.53,0.3298991]
[1727359605202,16.646,152.56,152.53,0.3298991]
[1727359611028,23.2009,152.56,152.53,0.3298991]
[1727359611645,6.5553,152.55,152.53,0.3298991]
[1727359613115,12.6659,152.54,152.5,0.3648767]
[1727359613631,6.1103,152.54,152.5,0.3648767]
[1727359613809,30.333084,152.53,152.5,0.3648767]
[1727359614008,12.6659,152.54,152.5,0.3648767]
[1727359614207,6.1103,152.54,152.5,0.3648767]
[1727359615111,6.1103,152.54,152.49,0.3656787]
[1727359619641,16.646,152.56,152.5,0.25098]
[1727359620432,6.5653,152.59,152.5,0.25098]
[1727359620806,6.5653,152.59,152.5,24.027864]
[1727359621030,6.5653,152.59,152.52,0.25098]
[1727359621218,6.5653,152.59,152.52,0.12549]
[1727359621417,13.1188,152.59,152.51,20.0]
[1727359621834,6.5653,152.59,152.52,1.31125066]
[1727359622211,6.5653,152.59,152.51,20.0]
[1727359622534,6.5653,152.59,152.52,0.25098]
[1727359622915,6.5653,152.59,152.52,1.5620686]
[1727359623441,15.4304,152.6,152.54,0.25098]
[1727359624238,0.0478861,152.62,152.56,0.12549]
[1727359625319,0.0478861,152.62,152.54,0.25098]
[1727359626551,6.553,152.6,152.47,47.09987481]
[1727359626855,16.074,152.57,152.47,41.05257481]
[1727359627154,16.074,152.57,152.47,16.0364]
[1727359627524,16.074,152.57,152.48,1.31136063]
[1727359627740,16.074,152.57,152.5,1.31127829]
[1727359627939,22.6266,152.61,152.48,33.03897847]
[1727359628243,16.074,152.61,152.51,20.25098]
[1727359629722,30.330084,152.6,152.5,0.25098]
[1727359629923,6.5542,152.58,152.49,0.3656787]
[1727359630544,30.329984,152.6,152.49,0.3656787]
[1727359630742,6.5535,152.59,152.49,0.3656787]
[1727359631130,30.329984,152.6,152.5,0.12549]
[1727359631452,23.776884,152.6,152.5,0.12549]
[1727359631755,6.5535,152.59,152.5,0.12549]
[1727359631956,30.329984,152.6,152.5,0.12549]
[1727359632135,30.329984,152.6,152.5,1.43678168]
[1727359632337,16.074,152.61,152.51,0.12549]
[1727359632545,22.6267,152.61,152.51,0.12549]
[1727359634333,16.074,152.61,152.52,0.12549]
[1727359634644,0.0478861,152.62,152.52,0.12549]
[1727359637154,0.0478861,152.62,152.52,23.902374]
[1727359637359,0.0478861,152.62,152.55,20.12549]
[1727359637829,0.0478861,152.62,152.55,20.0]
[1727359638235,0.0478861,152.62,152.52,20.0]
[1727359638452,6.5529,152.61,152.52,20.0]
[1727359639059,6.5536,152.59,152.5,15.0819]
[1727359639354,23.776884,152.6,152.47,120.14915043]
[1727359639355,22.0335,152.58,152.47,120.14915043]
[1727359639562,22.0335,152.58,152.48,1.31138822]
[1727359639735,15.4792,152.58,152.48,1.31138822]
[1727359639936,23.776884,152.6,152.48,1.31138822]
[1727359639937,23.776884,152.6,152.48,33.03897847]
[1727359640460,6.553,152.6,152.5,0.25098]
[1727359641436,6.553,152.6,152.49,20.3656787]
[1727359641437,23.776884,152.61,152.49,0.3656787]
[1727359641654,6.5544,152.57,152.49,0.3656787]
[1727359641849,23.776884,152.56,152.49,0.3656787]
[1727359642047,6.5544,152.57,152.49,0.3656787]
[1727359642671,44.027864,152.61,152.49,0.3656787]
[1727359642861,23.776884,152.57,152.49,0.3656787]
[1727359643168,15.4570861,152.62,152.5,20.25098]
[1727359643334,15.4570861,152.62,152.52,20.25098]
[1727359643535,0.0478861,152.62,152.54,35.29228]
[1727359645661,0.0478861,152.62,152.56,0.25098]
[1727359645848,0.0478861,152.62,152.57,1.31072079]
[1727359646049,0.0478861,152.62,152.56,20.25098]
[1727359646345,0.0478861,152.62,152.55,20.0]
[1727359646560,0.0478861,152.62,152.56,0.12549]
[1727359646948,0.0478861,152.62,152.56,0.25098]
[1727359647941,0.0478861,152.62,152.58,0.12549]
[1727359648562,0.0478861,152.62,152.55,53.04732534]